bitfinex/quotes_ETHUSD_20250916
["timestamp","ask_amount","ask_price","bid_price","bid_amount"]
[1757993686456,0.5183,4538.8,4538.7,14.5]
[1757993686659,0.5183,4538.8,4538.7,18.193]
[1757993687031,0.5183,4538.8,4538.3,0.4446193]
[1757993687257,0.5183,4538.8,4538.7,0.1096]
[1757993687464,0.5183,4538.8,4538.7,3.8036]
[1757993688560,4.7624188,4538.8,4538.7,3.8036]
[1757993688867,6.99364432,4538.8,4538.7,3.693]
[1757993690847,2.20327406,4538.7,4538.2,1.694]
[1757993691047,0.1096,4538.5,4538.3,3.693]
[1757993691355,0.0447,4538.4,4538.3,3.693]
[1757993692086,0.082,4538.8,4538.3,5.0698]
[1757993692376,4.2441188,4538.7,4538.3,3.8026]
[1757993692985,4.2441188,4538.4,4538.3,3.8026]
[1757993693198,4.2888188,4538.4,4538.3,3.8026]
[1757993694092,4.6804188,4538.4,4538.3,0.1096]
[1757993694254,4.7084188,4538.4,4538.3,3.697]
[1757993694666,4.6804188,4538.4,4538.3,3.697]
[1757993694867,6.8838385,4538.4,4538.3,3.697]
[1757993695065,6.8838385,4538.4,4537.8,0.001]
[1757993695066,2.20354813,4538.2,4537.8,0.001]
[1757993695265,2.20354813,4538.2,4537.9,3.697]
[1757993695467,4.2888188,4538.0,4537.9,3.697]
[1757993696064,4.6804188,4538.0,4537.8,3.698]
[1757993696494,2.59526248,4537.9,4537.8,3.698]
[1757993696692,2.59526248,4537.9,4537.8,0.001]
[1757993696905,0.4363,4537.9,4537.8,0.001]
[1757993697202,4.3537188,4538.0,4537.8,0.001]
[1757993697571,0.0447,4537.9,4537.8,0.001]
[1757993697983,0.4736,4538.8,4537.8,0.749]
[1757993698293,4.2441188,4538.0,4537.8,0.001]
[1757993698684,4.2441188,4538.0,4537.9,0.761]
[1757993698900,4.2888188,4538.0,4537.8,3.698]
[1757993699184,4.6804188,4538.0,4537.8,3.698]
[1757993699515,4.2441188,4538.0,4537.9,1.2212]
[1757993700487,4.2441188,4538.0,4537.9,1.3308]
[1757993701899,4.2441188,4538.3,4537.9,3.53446248]
[1757993702082,4.2441188,4538.3,4538.0,4.6294]
[1757993702408,4.2441188,4538.3,4538.0,3.696]
[1757993702981,4.2441188,4538.3,4538.0,4.6294]
[1757993703185,4.2441188,4538.3,4538.1,0.9334]
[1757993703794,7.2441188,4538.3,4538.2,0.9334]
[1757993704010,7.2441188,4538.3,4538.2,1.2212]
[1757993704794,9.49229116,4538.3,4538.0,3.696]
[1757993705171,7.2888188,4538.3,4538.0,3.696]
[1757993707065,7.28589914,4538.3,4538.0,3.696]
[1757993707306,7.28589914,4538.3,4538.0,4.1692]
[1757993707491,7.24119914,4538.3,4538.0,4.1692]
[1757993707672,7.24119914,4538.3,4538.2,0.2878]
[1757993707879,7.24119914,4538.3,4538.2,1.2212]
[1757993708197,3.0,4538.6,4538.2,1.3308]
[1757993708399,4.2441188,4538.4,4538.3,3.694]
[1757993708579,4.2441188,4538.4,4538.3,4.9152]
[1757993708778,0.082,4538.8,4538.3,4.9152]
[1757993708991,0.082,4538.8,4538.6,2.20331061]
[1757993709191,0.082,4538.8,4538.7,6.00687406]
[1757993709488,0.082,4538.8,4538.7,4.0924]
[1757993709689,0.082,4538.8,4538.7,7.22907406]
[1757993709999,0.082,4538.8,4538.7,5.0258]
[1757993710676,0.082,4538.8,4538.7,7.22907406]
[1757993711490,0.082,4538.8,4538.7,5.0258]
[1757993712094,0.082,4538.8,4538.7,4.738]
[1757993712524,0.082,4538.8,4538.7,5.0258]
[1757993712825,0.082,4538.8,4538.7,19.5258]
[1757993713240,0.082,4538.8,4538.7,5.0258]
[1757993713799,0.082,4538.8,4538.7,19.5258]
[1757993723402,4.3708188,4538.8,4538.7,14.6096]
[1757993723602,4.7624188,4538.8,4538.7,3.7986]
[1757993723797,4.3708188,4538.8,4538.7,3.7986]
[1757993724133,3.0,4538.7,4538.6,3.688]
[1757993724311,4.2441188,4538.7,4538.6,3.688]
[1757993724512,7.6804188,4538.7,4538.6,3.688]
[1757993724937,7.6804188,4538.7,4538.2,1.8036]
[1757993725136,0.3916,4538.6,4538.3,3.689]
[1757993725301,0.0447,4538.4,4538.3,3.689]
[1757993726233,7.2441188,4538.7,4538.3,4.5879]
[1757993726420,7.2441188,4538.7,4538.4,0.8989]
[1757993726634,0.082,4538.8,4538.7,2.20327406]
[1757993726855,0.082,4538.8,4538.7,6.31677406]
[1757993727048,0.082,4538.8,4538.7,7.21567406]
[1757993728846,0.082,4538.8,4538.7,5.0124]
[1757993729045,0.082,4538.8,4538.7,7.21567406]
[1757993730731,0.082,4538.8,4538.7,5.0124]
[1757993731224,0.082,4538.8,4538.7,4.2427]
[1757993731428,0.082,4538.8,4538.7,4.6975]
[1757993731629,0.082,4538.8,4538.7,5.0124]
[1757993735029,0.082,4538.8,4538.7,7.21567406]
[1757993736564,0.082,4538.8,4538.7,8.15757687]
[1757993736864,0.082,4538.8,4538.7,8.94957687]
[1757993742369,0.082,4538.8,4538.7,5.26057687]
[1757993742569,0.082,4538.8,4538.7,8.94557687]
[1757993742779,0.082,4538.8,4538.7,4.46857687]
[1757993742985,0.082,4538.8,4538.7,7.21167406]
[1757993743155,0.082,4538.8,4538.7,3.52667406]
[1757993743473,0.082,4538.8,4538.7,7.21267406]
[1757993744181,0.082,4538.8,4538.7,5.99887406]
[1757993744985,0.082,4538.8,4538.7,5.99787406]
[1757993745886,0.082,4538.8,4538.7,2.31287406]
[1757993746067,0.082,4538.8,4538.7,5.99787406]
[1757993746680,0.082,4538.8,4538.7,3.7946]
[1757993746681,0.1267,4538.8,4538.7,3.7946]
[1757993747984,0.1267,4538.8,4538.7,5.99787406]
[1757993748286,0.082,4538.8,4538.7,5.99787406]
[1757993748879,0.082,4538.8,4538.7,2.31287406]
[1757993749115,0.082,4538.8,4538.7,5.99687406]
[1757993749705,0.1267,4538.8,4538.7,3.7936]
[1757993750109,0.1267,4538.8,4538.7,5.99687406]
[1757993750711,0.082,4538.8,4538.7,5.99687406]
[1757993752509,0.1267,4538.8,4538.7,0.1096]
[1757993752724,0.5183,4538.8,4538.7,3.7936]
[1757993753015,0.1267,4538.8,4538.7,3.7936]
[1757993753390,0.1267,4538.8,4538.7,3.7926]
[1757993753711,0.5183,4538.8,4538.7,3.7926]
[1757993754280,0.5183,4538.8,4538.3,0.001]
[1757993754583,7.84187928,4538.8,4538.4,3.684]
[1757993754799,0.5183,4538.8,4538.4,3.684]
[1757993755001,0.1267,4538.8,4538.4,4.6233]
[1757993755209,0.1267,4538.8,4538.4,5.8874187]
[1757993755381,0.082,4538.8,4538.5,0.9393]
[1757993755577,0.082,4538.8,4538.6,3.684]
[1757993755788,0.3916,4538.7,4538.6,3.684]
[1757993755993,0.4363,4538.7,4538.6,3.684]
[1757993756708,0.0447,4538.7,4538.6,3.684]
[1757993756909,0.082,4538.8,4538.6,4.4497]
[1757993757213,0.082,4538.8,4538.7,0.9393]
[1757993757708,0.082,4538.8,4538.6,18.184]
[1757993757873,0.082,4538.8,4538.6,18.6578]
[1757993758077,0.082,4538.8,4538.6,19.1233]
[1757993758301,0.0447,4538.7,4538.6,18.184]
[1757993759884,0.082,4538.8,4538.6,18.184]
[1757993760087,0.082,4538.8,4538.7,0.7657]
[1757993760306,0.082,4538.8,4538.7,1.2395]
[1757993762085,0.082,4538.8,4538.7,0.4738]
[1757993762286,0.082,4538.8,4538.6,3.7936]
[1757993762490,0.082,4538.8,4538.6,6.47072137]
[1757993762805,0.082,4538.8,4538.7,3.44277406]
[1757993764731,0.082,4538.8,4538.7,1.2395]
[1757993764888,0.082,4538.8,4538.7,3.44277406]
[1757993765089,0.082,4538.8,4538.7,17.94277406]
[1757993766211,0.082,4538.8,4538.7,20.08192589]
[1757993768123,0.082,4538.8,4538.7,20.98352589]
[1757993768620,0.082,4538.8,4538.7,21.26057406]
[1757993768823,0.082,4538.8,4538.7,21.73437406]
[1757993769319,0.082,4538.8,4538.7,18.05237406]
[1757993769626,0.082,4538.8,4538.7,21.73537406]
[1757993769998,0.082,4538.8,4538.7,14.6096]
[1757993769999,0.1267,4538.8,4538.7,14.6096]
[1757993770320,0.082,4538.8,4538.7,18.2926]
[1757993770519,0.1267,4538.8,4538.7,14.6096]
[1757993770821,0.082,4538.8,4538.7,21.26157406]
[1757993771118,0.082,4538.8,4538.7,21.73537406]
[1757993771420,0.082,4538.8,4538.7,18.2916]
[1757993771632,0.082,4538.8,4538.7,20.49487406]
[1757993771841,0.082,4538.8,4538.7,21.43417406]
[1757993772937,0.5183,4538.8,4538.7,18.2916]
[1757993773240,0.5183,4538.8,4538.7,3.683]
[1757993774238,0.1267,4538.8,4538.7,3.683]
[1757993775028,0.5183,4538.8,4538.7,3.683]
[1757993775387,0.1267,4538.8,4538.7,3.683]
[1757993775708,0.5183,4538.8,4538.7,3.683]
[1757993776141,0.1267,4538.8,4538.7,3.683]
[1757993776642,0.5183,4538.8,4538.7,3.683]
[1757993777225,3.5183,4538.8,4538.6,3.682]
[1757993777427,0.5183,4538.8,4538.6,3.682]
[1757993777744,2.72152912,4538.8,4538.3,14.501]
[1757993778060,3.0,4538.6,4538.4,3.683]
[1757993778208,0.0447,4538.5,4538.4,3.683]
[1757993778410,0.0447,4538.5,4538.3,0.001]
[1757993778608,0.0447,4538.5,4538.4,3.683]
[1757993779456,0.1096,4538.7,4538.4,4.4487]
[1757993779609,0.0447,4538.5,4538.4,3.683]
[1757993782171,0.0447,4538.5,4538.3,14.501]
[1757993782463,0.3916,4538.4,4538.3,3.683]
[1757993782762,0.0447,4538.4,4538.3,3.683]
[1757993782983,0.0447,4538.4,4538.3,0.001]
[1757993783342,2.2481197,4538.4,4538.3,0.001]
[1757993783987,5.6397197,4538.4,4538.3,0.001]
[1757993785682,5.2481197,4538.4,4538.3,0.001]
[1757993787392,10.73207107,4538.4,4538.3,0.001]
[1757993787548,14.02147107,4538.4,4538.3,0.001]
[1757993788096,8.9331197,4538.4,4538.3,0.001]
[1757993788375,3.0,4538.4,4538.3,0.001]
[1757993788539,3.0,4538.4,4538.3,1.2142]
[1757993789592,5.2481197,4538.4,4538.3,0.001]
[1757993791381,5.6397197,4538.4,4538.3,0.001]
[1757993791785,9.88565116,4538.4,4538.3,0.001]
[1757993791983,9.44935116,4538.4,4538.3,0.001]
[1757993792979,5.2034197,4538.4,4538.3,0.4626]
[1757993793184,9.44935116,4538.4,4538.3,1.2142]
[1757993793785,13.08435116,4538.4,4538.3,1.2142]
[1757993794493,10.88093146,4538.4,4538.3,1.2142]
[1757993794692,9.39935116,4538.4,4538.3,1.2142]
[1757993794894,13.08435116,4538.4,4538.3,1.2142]
[1757993796014,13.12905116,4538.4,4538.3,0.001]
[1757993797215,13.12805116,4538.4,4538.3,0.001]
[1757993797416,13.08335116,4538.4,4538.3,0.001]
[1757993798194,13.08335116,4538.4,4538.3,0.4626]
[1757993798784,13.08335116,4538.4,4538.3,0.906]
[1757993799589,14.53147557,4538.4,4538.3,0.001]
[1757993799789,10.08123174,4538.4,4538.3,0.001]
[1757993799991,14.80456264,4538.4,4538.3,0.001]
[1757993800503,15.19616264,4538.4,4538.3,0.001]
[1757993802213,14.80456264,4538.4,4538.3,0.001]
[1757993802517,11.11856264,4538.4,4538.3,0.001]
[1757993802810,14.3291632,4538.4,4538.3,0.001]
[1757993803217,14.80468396,4538.4,4538.3,0.001]
[1757993803579,15.19628396,4538.4,4538.3,0.001]
[1757993803998,14.80468396,4538.4,4538.3,0.001]
[1757993804521,11.07398396,4538.4,4538.3,0.001]
[1757993804723,10.03753174,4538.4,4538.3,1.2142]
[1757993804900,13.08435116,4538.4,4538.3,1.2142]
[1757993805317,13.08435116,4538.4,4538.3,0.7708]
[1757993805619,13.08435116,4538.4,4538.3,1.2142]
[1757993805986,9.39935116,4538.4,4538.3,1.2142]
[1757993806186,13.08535116,4538.4,4538.3,1.2142]
[1757993807015,13.49834034,4538.4,4538.3,0.001]
[1757993807222,13.6222398,4538.4,4538.3,0.001]
[1757993810011,13.6689398,4538.4,4538.3,0.001]
[1757993810212,14.53660496,4538.4,4538.3,0.001]
[1757993810810,3.15849459,4538.4,4538.3,1.2479]
[1757993811019,2.952,4538.4,4538.3,1.2479]
[1757993811929,0.002,4538.4,4538.3,3.45136825]
[1757993812121,0.002,4538.4,4538.3,1.81339784]
[1757993812503,0.002,4538.4,4538.3,4.01686609]
[1757993812704,0.002,4538.4,4538.3,1.81339784]
[1757993813051,0.002,4538.4,4538.3,4.01686609]
[1757993814640,0.002,4538.4,4538.3,18.51686609]
[1757993815335,0.002,4538.4,4538.3,16.31339784]
[1757993815548,0.002,4538.4,4538.3,18.51686609]
[1757993816240,0.002,4538.4,4538.3,16.31339784]
[1757993817354,0.002,4538.4,4538.3,17.95136825]
[1757993817653,0.002,4538.4,4538.3,15.7479]
[1757993819957,0.002,4538.4,4538.3,0.001]
[1757993820530,2.2501197,4538.4,4538.3,0.001]
[1757993821628,0.0467,4538.4,4538.3,0.001]
[1757993821832,0.1116,4538.4,4538.3,0.001]
[1757993822742,0.1116,4538.4,4538.3,1.2138]
[1757993823463,3.1116,4538.4,4538.3,1.2138]
[1757993824045,0.1116,4538.4,4538.3,1.2138]
[1757993825552,3.1116,4538.4,4538.3,1.2138]
[1757993830666,0.1116,4538.4,4538.3,1.2138]
[1757993831270,0.1116,4538.4,4538.3,3.53864825]
[1757993831271,0.002,4538.4,4538.3,3.53864825]
[1757993831473,0.002,4538.4,4538.3,3.64824825]
[1757993833644,0.002,4538.4,4538.3,3.67028293]
[1757993833840,0.002,4538.4,4538.3,3.64824825]
[1757993840172,0.002,4538.4,4538.3,10.29261439]
[1757993840371,0.002,4538.4,4538.3,10.27057971]
[1757993847014,0.002,4538.4,4538.3,14.46057971]
[1757993848150,0.002,4538.4,4538.3,9.77374825]
[1757993848308,0.002,4538.4,4538.3,13.91904825]
[1757993850104,0.002,4538.4,4538.3,14.02864825]
[1757993852860,0.002,4538.4,4538.3,14.02764825]
[1757993853042,0.002,4538.4,4538.3,9.83764825]
[1757993855847,0.002,4538.4,4538.3,9.37234825]
[1757993856048,0.002,4538.4,4538.3,9.83764825]
[1757993857677,0.002,4538.4,4538.3,5.40224825]
[1757993857834,0.002,4538.4,4538.3,9.54554825]
[1757993858234,0.002,4538.4,4538.3,9.84904825]
[1757993859863,0.002,4538.4,4538.3,6.17104825]
[1757993860063,0.002,4538.4,4538.3,9.84904825]
[1757993860267,0.002,4538.4,4538.3,4.12944825]
[1757993860468,0.0467,4538.4,4538.3,7.68606825]
[1757993861058,0.002,4538.4,4538.3,7.68606825]
[1757993861559,0.002,4538.4,4538.3,4.00806825]
[1757993861755,0.002,4538.4,4538.3,7.68606825]
[1757993861992,0.0467,4538.4,4538.3,7.68606825]
[1757993863175,0.002,4538.4,4538.3,7.68606825]
[1757993864169,0.0467,4538.4,4538.3,7.68606825]
[1757993865346,0.002,4538.4,4538.3,7.68606825]
[1757993865546,0.002,4538.4,4538.3,8.15136825]
[1757993865777,0.002,4538.4,4538.3,8.61306825]
[1757993866162,0.0467,4538.4,4538.3,7.68606825]
[1757993866582,0.002,4538.4,4538.3,7.68606825]
[1757993867209,0.0467,4538.4,4538.3,22.18506825]
[1757993867370,0.4383,4538.4,4538.3,22.18506825]
[1757993867915,0.0467,4538.4,4538.3,18.50806825]
[1757993868080,0.0467,4538.4,4538.3,22.18506825]
[1757993869521,0.0467,4538.4,4537.7,2.20371433]
[1757993869522,2.20385674,4537.5,4537.4,0.001]
[1757993869872,0.55863535,4537.5,4537.4,0.001]
[1757993870304,0.4347,4537.5,4537.4,0.001]
[1757993870614,3.4347,4537.5,4537.4,0.001]
[1757993870767,3.64094644,4537.5,4537.4,0.001]
[1757993870971,2.84480318,4537.5,4537.4,0.001]
[1757993871170,2.63855674,4537.5,4537.4,0.001]
[1757993871805,5.63855674,4537.5,4537.4,3.001]
[1757993872104,3.4347,4537.5,4537.4,3.001]
[1757993872469,3.0431,4537.5,4537.4,3.001]
[1757993872812,5.20358603,4538.1,4537.4,3.001]
[1757993872972,0.662621,4537.9,4537.4,3.001]
[1757993873302,0.3916,4538.2,4537.5,14.5]
[1757993873503,3.3916,4538.2,4537.5,14.5]
[1757993873673,3.66261075,4538.0,4537.5,14.5]
[1757993873999,4.05421075,4538.0,4537.5,14.5]
[1757993874173,0.3916,4538.3,4537.6,0.925]
[1757993874369,6.89942499,4538.4,4537.6,0.925]
[1757993874568,4.696,4538.4,4537.6,0.925]
[1757993874787,4.696,4538.4,4537.7,14.5]
[1757993874967,0.66256246,4538.3,4537.7,18.218]
[1757993875168,3.0,4538.2,4537.7,18.218]
[1757993875370,5.20352721,4538.2,4537.7,18.218]
[1757993875596,2.20352721,4538.2,4537.7,18.218]
[1757993876898,2.2034739,4538.3,4537.7,18.218]
[1757993877297,2.20351731,4538.2,4537.7,18.218]
[1757993877609,2.20351731,4538.2,4537.7,18.67]
[1757993877782,2.20351731,4538.2,4537.7,19.14]
[1757993878696,2.20357062,4538.1,4537.7,18.218]
[1757993879012,0.0431,4537.8,4537.7,18.218]
[1757993879390,0.0431,4537.8,4537.7,18.3276]
[1757993880701,0.0431,4537.8,4537.7,3.8276]
[1757993880914,0.3916,4538.1,4537.7,3.8276]
[1757993881310,2.20363611,4538.0,4537.8,14.5]
[1757993881620,0.0431,4537.9,4537.8,14.5]
[1757993882329,2.24676248,4537.9,4537.8,14.5]
[1757993882907,0.0431,4537.9,4537.8,14.5]
[1757993884427,0.3916,4538.3,4537.8,14.5]
[1757993884627,4.8056,4538.4,4537.9,0.452]
[1757993884820,4.8056,4538.4,4537.9,0.922]
[1757993884821,2.20352758,4538.2,4537.9,0.922]
[1757993885198,2.20356647,4538.1,4537.9,15.422]
[1757993885929,3.0,4538.3,4537.9,15.422]
[1757993886131,2.20357395,4538.1,4537.9,15.422]
[1757993886830,4.8056,4538.4,4537.9,15.422]
[1757993887127,7.00902129,4538.4,4537.9,15.422]
[1757993887334,2.20357842,4538.1,4537.9,15.422]
[1757993887510,2.20357842,4538.1,4537.9,14.97]
[1757993887711,2.20352513,4538.2,4537.9,15.422]
[1757993888617,4.8056,4538.4,4538.1,0.2855]
[1757993888801,7.00903905,4538.4,4538.2,0.922]
[1757993889832,2.20346825,4538.3,4538.2,0.922]
[1757993890206,2.20346825,4538.3,4538.2,0.452]
[1757993890412,2.20352643,4538.2,4538.0,0.47]
[1757993890934,2.20361392,4538.0,4537.9,14.5]
[1757993891102,2.24671392,4538.0,4537.9,14.5]
[1757993891602,0.0431,4538.0,4537.9,14.5]
[1757993892433,5.20359661,4538.1,4537.9,14.5]
[1757993893505,2.24671392,4538.0,4537.9,14.5]
[1757993893705,2.24671392,4538.0,4537.6,0.001]
[1757993893706,2.20371104,4537.8,4537.6,0.001]
[1757993894034,9.29949316,4537.7,4537.6,0.001]
[1757993894233,10.09100617,4537.7,4537.6,0.001]
[1757993894437,10.06400617,4537.7,4537.6,0.001]
[1757993894808,10.09100617,4537.7,4537.6,0.001]
[1757993895016,10.29716793,4537.7,4537.6,0.001]
[1757993895220,10.77214451,4537.7,4537.6,0.001]
[1757993896212,10.77218581,4537.7,4537.6,0.001]
[1757993896825,7.03718581,4537.7,4537.6,0.001]
[1757993897017,9.96585226,4537.7,4537.6,0.001]
[1757993899324,10.35745226,4537.7,4537.6,0.001]
[1757993900523,10.38445226,4537.7,4537.6,0.001]
[1757993900723,10.35745226,4537.7,4537.6,0.001]
[1757993900919,10.72743581,4537.7,4537.6,0.001]
[1757993902322,10.72743581,4537.7,4536.7,0.001]
[1757993902323,2.20412378,4537.0,4536.7,0.001]
[1757993902524,10.29558695,4536.8,4536.7,0.001]
[1757993902724,11.3496796,4536.8,4536.7,0.001]
[1757993903039,11.85666987,4536.8,4536.7,0.001]
[1757993903239,11.82966987,4536.8,4536.7,0.001]
[1757993903439,11.82966987,4536.8,4535.2,3.684]
[1757993903440,3.0,4536.7,4535.2,3.684]
[1757993903639,10.29587849,4536.2,4535.8,0.4515]
[1757993903954,14.2110112,4536.2,4536.1,0.4715]
[1757993904154,14.2110112,4536.2,4536.1,1.1918]
[1757993905455,14.2541112,4536.2,4536.1,0.02]
[1757993905756,14.76930724,4536.2,4536.1,0.02]
[1757993906169,15.69543223,4536.2,4536.1,0.02]
[1757993906726,15.92831164,4536.2,4536.1,0.02]
[1757993906978,15.69543223,4536.2,4536.1,0.02]
[1757993908229,3.0,4536.1,4535.4,0.4515]
[1757993908463,2.20473135,4535.7,4535.6,0.4289]
[1757993908628,6.12186406,4535.7,4535.6,0.7203]
[1757993908836,2.20482857,4535.5,4535.4,0.4515]
[1757993909062,2.20497442,4535.2,4535.1,0.02]
[1757993909227,2.20497442,4535.2,4535.1,0.9004]
[1757993909228,3.8206,4535.2,4535.1,0.9004]
[1757993909434,3.8206,4535.2,4535.1,1.1918]
[1757993909630,8.91199016,4535.2,4535.1,1.1918]
[1757993909831,14.11696458,4535.2,4535.1,0.9004]
[1757993910888,14.16006458,4535.2,4535.1,0.02]
[1757993911743,14.11696458,4535.2,4535.1,0.02]
[1757993911926,14.36556922,4535.2,4535.1,0.02]
[1757993912135,14.75716922,4535.2,4535.1,0.02]
[1757993912958,14.88044439,4535.2,4535.1,0.02]
[1757993913368,14.88027274,4535.2,4535.1,0.02]
[1757993913676,15.35350048,4535.2,4535.1,0.02]
[1757993914174,15.35349167,4535.2,4535.1,0.02]
[1757993914382,14.88027274,4535.2,4535.1,0.02]
[1757993914770,15.25025629,4535.2,4535.1,0.02]
[1757993915083,5.99712028,4534.9,4534.8,0.081]
[1757993915282,11.73472844,4534.9,4534.8,0.081]
[1757993915486,12.25089739,4534.9,4534.8,0.081]
[1757993915686,12.73093417,4534.9,4534.8,0.081]
[1757993915896,17.33090724,4534.9,4534.8,0.081]
[1757993916266,16.10620724,4534.9,4534.8,0.081]
[1757993916482,12.39120724,4534.9,4534.8,0.081]
[1757993916685,16.10720724,4534.9,4534.8,1.2528]
[1757993917089,16.10689153,4534.9,4534.8,1.2528]
[1757993917793,16.14999153,4534.9,4534.8,0.081]
[1757993918175,16.54159153,4534.9,4534.8,0.081]
[1757993918565,16.14999153,4534.9,4534.8,0.081]
[1757993918980,16.10689153,4534.9,4534.8,0.081]
[1757993919497,16.10689153,4534.9,4534.8,0.9614]
[1757993920200,16.10689153,4534.9,4534.8,0.081]
[1757993920707,12.39089153,4534.9,4534.8,0.081]
[1757993920866,16.10589153,4534.9,4534.8,0.081]
[1757993921064,16.01745475,4534.9,4534.8,0.081]
[1757993922211,12.30245475,4534.9,4534.8,0.081]
[1757993922413,12.30245475,4534.9,4534.8,1.2528]
[1757993922414,8.04837101,4534.9,4534.8,1.2528]
[1757993922581,11.63926134,4534.9,4534.8,1.2528]
[1757993922917,11.16619239,4534.9,4534.8,1.2528]
[1757993923284,11.76269025,4534.9,4534.8,1.2528]
[1757993926818,11.76269025,4534.9,4534.8,0.081]
[1757993926995,11.80579025,4534.9,4534.8,0.081]
[1757993927315,12.19739025,4534.9,4534.8,0.081]
[1757993929185,12.40317983,4534.9,4534.8,0.081]
[1757993929725,12.19739025,4534.9,4534.8,0.081]
[1757993929935,11.80579025,4534.9,4534.8,0.081]
[1757993930229,11.80579025,4534.9,4534.8,0.8684]
[1757993930230,11.76069025,4534.9,4534.8,0.8684]
[1757993930421,11.76069025,4534.9,4534.8,1.3188]
[1757993930620,11.76069025,4534.9,4534.8,0.081]
[1757993931202,12.55993659,4534.9,4534.8,0.081]
[1757993931734,12.55993659,4534.9,4534.8,0.3741]
[1757993931938,12.55993659,4534.9,4534.8,1.3188]
[1757993932422,11.96671873,4534.9,4534.8,1.3188]
[1757993933695,12.00981873,4534.9,4534.8,0.081]
[1757993933930,12.80231678,4534.9,4534.8,0.081]
[1757993934235,12.40041873,4534.9,4534.8,0.081]
[1757993934595,11.96571873,4534.9,4534.8,0.081]
[1757993934801,8.25471873,4534.9,4534.8,0.081]
[1757993935001,11.96471873,4534.9,4534.8,1.0257]
[1757993937264,11.96471873,4534.9,4534.8,0.081]
[1757993937466,8.25471873,4534.9,4534.8,0.081]
[1757993937677,11.96271873,4534.9,4534.8,0.081]
[1757993938236,13.15316062,4534.9,4534.8,0.081]
[1757993939851,9.44516062,4534.9,4534.8,0.081]
[1757993940062,13.15316062,4534.9,4534.8,0.5203]
[1757993940264,11.96271873,4534.9,4534.8,0.5203]
[1757993940669,11.96271873,4534.9,4534.8,0.081]
[1757993941146,11.96171873,4534.9,4534.8,0.081]
[1757993941576,8.25471873,4534.9,4534.8,1.3215]
[1757993941883,11.96071873,4534.9,4534.8,1.3215]
[1757993942040,8.25471873,4534.9,4534.8,1.3215]
[1757993942243,7.9088294,4534.9,4534.8,1.3215]
[1757993942544,11.6158294,4534.9,4534.8,1.3215]
[1757993942767,5.70370912,4534.9,4534.8,1.3215]
[1757993943076,2.70370912,4534.9,4534.8,1.3215]
[1757993943241,9.41070912,4534.9,4534.8,1.3215]
[1757993943447,11.6158294,4534.9,4534.8,1.3215]
[1757993943648,12.21161611,4534.9,4534.8,1.3215]
[1757993943973,10.00649583,4534.9,4534.8,1.3215]
[1757993944370,6.29949583,4534.9,4534.8,1.3215]
[1757993944567,12.21161611,4534.9,4534.8,1.3215]
[1757993945095,16.46569985,4534.9,4534.8,1.3215]
[1757993945467,15.86991314,4534.9,4534.8,0.8822]
[1757993945671,15.86991314,4534.9,4534.8,0.081]
[1757993945987,16.30461314,4534.9,4534.8,0.081]
[1757993946180,16.70748405,4534.9,4534.8,0.081]
[1757993947479,12.16291314,4534.9,4534.8,0.8822]
[1757993947685,15.86991314,4534.9,4534.8,1.3215]
[1757993948766,16.46562486,4534.9,4534.8,1.3215]
[1757993949514,11.6158294,4534.9,4534.8,1.3215]
[1757993949902,4.00770912,4534.9,4534.8,1.3215]
[1757993950198,0.1096,4534.9,4534.8,1.45365]
[1757993950388,0.002,4535.1,4534.8,15.95365]
[1757993950699,0.002,4535.1,4534.9,0.9343]
[1757993951060,0.002,4535.1,4534.8,15.01935]
[1757993951061,0.002,4535.1,4535.0,1.2405]
[1757993954119,0.002,4535.1,4535.0,15.7405]
[1757993954823,2.20702304,4535.1,4535.0,15.7405]
[1757993954993,2.20702304,4535.1,4535.0,15.3012]
[1757993955188,2.20702304,4535.1,4534.8,0.081]
[1757993955189,2.20512028,4534.9,4534.8,0.081]
[1757993955387,10.16420402,4534.9,4534.8,0.576]
[1757993955588,10.16420402,4534.9,4534.8,0.8822]
[1757993955791,7.95908374,4534.9,4534.8,1.3215]
[1757993956686,10.16420402,4534.9,4534.8,1.3215]
[1757993957198,7.95908374,4534.9,4534.8,1.3215]
[1757993957399,3.705,4534.9,4534.8,1.3215]
[1757993958393,8.91012028,4534.9,4534.8,1.3215]
[1757993958620,8.91012028,4534.9,4534.8,0.8822]
[1757993959312,6.705,4534.9,4534.8,1.3215]
[1757993959911,6.703,4534.9,4534.8,1.3215]
[1757993961606,3.0,4534.9,4534.8,1.3215]
[1757993961809,6.8126,4534.9,4534.8,1.3215]
[1757993963618,3.1096,4534.9,4534.8,1.3215]
[1757993964334,5.31472028,4534.9,4534.8,1.3215]
[1757993964658,3.1096,4534.9,4534.8,1.3215]
[1757993965747,5.31472028,4534.9,4534.8,1.3215]
[1757993965945,10.24309627,4534.9,4534.8,0.081]
[1757993966145,11.87420757,4534.9,4534.8,0.081]
[1757993966332,12.22008055,4534.9,4534.8,0.081]
[1757993966536,11.13192402,4534.9,4534.8,0.081]
[1757993966738,11.57052402,4534.9,4534.8,0.081]
[1757993967920,11.17892402,4534.9,4534.8,0.081]
[1757993968155,10.74032402,4534.9,4534.8,0.081]
[1757993968854,11.57052402,4534.9,4534.8,0.081]
[1757993969085,10.74032402,4534.9,4534.8,0.081]
[1757993969372,6.32744028,4534.9,4534.8,0.8464]